fUST/lending_fUST_20250609
["ID","MTS","AMOUNT","RATE_DAILY","PERIOD"]
[365085650,1749459043227,-200.0,0.00022699,2]
[365085651,1749459043237,-338529.51012904,0.000227,2]
[365085652,1749459043246,-60710.77,0.000227,2]
[365085653,1749459043255,-151.0,0.000227,7]
[365085654,1749459043265,-151.0,0.000227,7]
[365085655,1749459043274,-151.0,0.000227,7]
[365085656,1749459043283,-151.0,0.000227,7]
[365085657,1749459043290,-151.0,0.000227,7]
[365085658,1749459043296,-151.0,0.000227,7]
[365085659,1749459043303,-151.0,0.000227,7]
[365085660,1749459043310,-151.0,0.000227,7]
[365085661,1749459043317,-151.0,0.000227,7]
[365085662,1749459043324,-247.07997,0.000227,7]
[365085663,1749459043332,-151.0,0.000227,7]
[365085664,1749459043339,-151.0,0.000227,7]
[365085665,1749459043347,-151.0,0.000227,7]
[365085666,1749459043356,-151.0,0.000227,2]
[365085667,1749459043363,-151.0,0.000227,7]
[365085668,1749459043371,-151.0,0.000227,7]
[365085669,1749459043379,-151.0,0.000227,7]
[365085670,1749459043387,-151.0,0.000227,7]
[365085671,1749459043394,-151.0,0.000227,7]
[365085672,1749459043402,-442.0,0.0002272,2]
[365085673,1749459043409,-1366.79890361,0.00022728,7]
[365085674,1749459043418,-200.50968493,0.00022738,2]
[365085675,1749459043427,-440.0,0.00022739,4]
[365085676,1749459043436,-440.0,0.00022739,2]
[365085677,1749459043445,-440.0,0.00022739,4]
[365085678,1749459043455,-440.0,0.00022739,4]
[365085679,1749459043464,-440.0,0.00022739,4]
[365085680,1749459043473,-440.0,0.00022739,4]
[365085681,1749459043483,-440.0,0.00022739,4]
[365085682,1749459043493,-400.0,0.00022739,2]
[365085683,1749459043503,-440.0,0.00022739,4]
[365085684,1749459043512,-767.75,0.00022739,4]
[365085685,1749459043522,-440.0,0.00022739,4]
[365085686,1749459043531,-2275.76,0.00022739,4]
[365085687,1749459043540,-440.0,0.00022739,4]
[365085688,1749459043549,-836.52,0.00022739,4]
[365085689,1749459043559,-440.0,0.00022739,4]
[365085691,1749459043569,-440.0,0.00022739,4]
[365085693,1749459043578,-811.8,0.00022739,4]
[365085695,1749459043586,-827.06,0.00022739,4]
[365085696,1749459043596,-440.0,0.00022739,4]
[365085698,1749459043605,-440.0,0.00022739,4]
[365085699,1749459043614,-440.0,0.00022739,4]
[365085700,1749459043623,-1801.25,0.00022739,4]
[365085701,1749459043632,-440.0,0.00022739,4]
[365085702,1749459043641,-781.95,0.00022739,4]
[365085703,1749459043650,-10547.41,0.00022739,4]
[365085704,1749459043659,-1183.2,0.00022739,4]
[365085705,1749459043668,-440.0,0.00022739,4]
[365085706,1749459043678,-807.09,0.00022739,4]
[365085707,1749459043688,-169.69308883,0.00022739,4]
[365085708,1749459043697,-279.2007,0.00022739,4]
[365085709,1749459043707,-440.0,0.00022739,4]
[365085710,1749459043716,-1350.38,0.00022739,4]
[365085711,1749459043725,-440.0,0.00022739,4]
[365085712,1749459043735,-1019.88,0.00022739,4]
[365085713,1749459043745,-440.0,0.00022739,4]
[365085714,1749459043755,-1532.54,0.00022739,4]
[365085715,1749459043764,-440.0,0.00022739,4]
[365085716,1749459043773,-440.0,0.00022739,4]
[365085717,1749459043782,-440.0,0.00022739,4]
[365085718,1749459043791,-440.0,0.00022739,4]
[365085719,1749459043801,-1226.29,0.00022739,4]
[365085720,1749459043810,-440.0,0.00022739,4]
[365085721,1749459043819,-440.0,0.00022739,4]
[365085722,1749459043828,-1446.7,0.00022739,4]
[365085723,1749459043837,-480.29,0.00022739,4]
[365085724,1749459043847,-638.0,0.000228,2]
[365085725,1749459043856,-151.0,0.00022831,7]
[365085726,1749459043865,-151.0,0.00022831,7]
[365085727,1749459043873,-151.0,0.00022831,7]
[365085728,1749459043882,-151.0,0.00022831,7]
[365085729,1749459043890,-151.0,0.00022831,7]
[365085730,1749459043899,-151.0,0.00022831,7]
[365085731,1749459043906,-151.0,0.00022831,2]
[365085732,1749459043914,-151.0,0.00022831,7]
[365085733,1749459043921,-151.0,0.00022831,7]
[365085734,1749459043927,-155.290581,0.00022831,7]
[365085735,1749459043934,-151.0,0.00022831,7]
[365085736,1749459043942,-151.0,0.00022831,7]
[365085737,1749459043949,-1366.79890361,0.00022831,8]
[365085738,1749459043955,-151.0,0.00022875,7]
[365085739,1749459043962,-151.0,0.00022875,7]
[365085740,1749459043968,-442.0,0.00022875,2]
[365085741,1749459043975,-158.7201836,0.00022904,2]
[365085742,1749459043982,-153.0,0.00022904,2]
[365085743,1749459043989,-176.7945791,0.00022904,2]
[365085744,1749459043999,-573.244939,0.00022904,2]
[365085745,1749459044005,-158.7201836,0.00022904,2]
[365085746,1749459044013,-153.0,0.00022904,2]
[365085747,1749459044022,-573.244939,0.00022904,2]
[365085748,1749459044029,-176.7945794,0.00022904,2]
[365085749,1749459044038,-176.7945791,0.00022904,2]
[365085750,1749459044047,-158.7201836,0.00022904,2]
[365085751,1749459044054,-573.244939,0.00022904,2]
[365085752,1749459044062,-176.7945793,0.00022904,2]
[365085753,1749459044068,-153.0,0.00022904,2]
[365085754,1749459044078,-158.7201836,0.00022904,2]
[365085755,1749459044087,-573.244939,0.00022904,2]
[365085756,1749459044097,-573.244939,0.00022904,2]
[365085757,1749459044107,-158.7201836,0.00022904,2]
[365085758,1749459044116,-176.7945791,0.00022904,2]
[365085759,1749459044125,-153.0,0.00022904,2]
[365085760,1749459044135,-376.1639127,0.00022904,2]
[365085761,1749459044144,-459.4591812,0.00022904,2]
[365085762,1749459044154,-153.0,0.00022904,2]
[365085763,1749459044163,-153.0,0.00022904,2]
[365085764,1749459044173,-1366.79890361,0.00022934,8]
[365085765,1749459044183,-151.0,0.00022935,7]
[365085766,1749459044192,-151.0,0.00022935,7]
[365085767,1749459044202,-442.0,0.00022972,2]
[365085768,1749459044213,-151.0,0.00022973,7]
[365085769,1749459044223,-4654.42,0.00022982,3]
[365085770,1749459044235,-187.0,0.00023,4]
[365085771,1749459044246,-187.0,0.00023,4]
[365085772,1749459044256,-967.09103696,0.00023,60]
[365085773,1749459044266,-229.64266968,0.00023012,3]
[365085774,1749459044275,-160.0,0.00023012,3]
[365085775,1749459044284,-554.6,0.00023013,4]
[365085776,1749459044294,-440.0,0.00023013,2]
[365085777,1749459044304,-440.0,0.00023013,4]
[365085778,1749459044314,-440.0,0.00023013,4]
[365085779,1749459044323,-440.0,0.00023013,4]
[365085780,1749459044333,-440.0,0.00023013,4]
[365085781,1749459044343,-440.0,0.00023013,4]
[365085782,1749459044352,-400.0,0.00023013,2]
[365085783,1749459044387,-519.9378231,0.00023013,4]
[365085784,1749459044397,-767.75,0.00023013,4]
[365085785,1749459044407,-440.0,0.00023013,4]
[365085786,1749459044417,-2275.76,0.00023013,4]
[365085787,1749459044427,-440.0,0.00023013,4]
[365085788,1749459044436,-836.52,0.00023013,4]
[365085789,1749459044446,-440.0,0.00023013,4]
[365085790,1749459044455,-440.0,0.00023013,4]
[365085791,1749459044465,-811.8,0.00023013,4]
[365085792,1749459044474,-827.06,0.00023013,4]
[365085793,1749459044485,-440.0,0.00023013,4]
[365085794,1749459044496,-216.06,0.00023013,4]
[365085795,1749459044505,-440.0,0.00023013,4]
[365085796,1749459044515,-1801.25,0.00023013,4]
[365085797,1749459044525,-440.0,0.00023013,4]
[365085798,1749459044534,-781.95,0.00023013,4]
[365085799,1749459044543,-10547.41,0.00023013,4]
[365085800,1749459044554,-1183.2,0.00023013,4]
[365085801,1749459044563,-440.0,0.00023013,4]
[365085802,1749459044573,-807.09,0.00023013,4]
[365085803,1749459044582,-440.0,0.00023013,4]
[365085804,1749459044592,-1350.38,0.00023013,4]
[365085805,1749459044601,-440.0,0.00023013,4]
[365085806,1749459044611,-1019.88,0.00023013,4]
[365085807,1749459044621,-440.0,0.00023013,4]
[365085808,1749459044630,-1532.54,0.00023013,4]
[365085809,1749459044640,-440.0,0.00023013,4]
[365085810,1749459044651,-440.0,0.00023013,4]
[365085811,1749459044660,-440.0,0.00023013,4]
[365085812,1749459044670,-440.0,0.00023013,4]
[365085813,1749459044679,-1226.29,0.00023013,4]
[365085814,1749459044689,-440.0,0.00023013,4]
[365085815,1749459044699,-440.0,0.00023013,4]
[365085816,1749459044709,-1446.7,0.00023013,4]
[365085817,1749459044718,-480.29,0.00023013,4]
[365085818,1749459044728,-503.14179143,0.0002302,8]
[365085819,1749459044737,-503.50116418,0.0002302,8]
[365085820,1749459044748,-1448.72644195,0.00023025,2]
[365085821,1749459044757,-442.0,0.00023033,2]
[365085822,1749459044767,-1366.79890361,0.00023038,8]
[365085823,1749459044776,-442.0,0.00023048,2]
[365085824,1749459044786,-4000.0,0.00023062,3]
[365085825,1749459044795,-160.0,0.00023062,3]
[365085826,1749459044805,-834.7738823,0.00023062,3]
[365085827,1749459044814,-442.0,0.00023127,2]
[365085828,1749459044824,-1366.79890361,0.00023141,8]
[365085829,1749459044834,-6000.0,0.00023189,3]
[365085830,1749459044844,-5000.0,0.00023192,2]
[365085831,1749459044853,-442.0,0.00023209,2]
[365085832,1749459044863,-1000.0,0.00023221,2]
[365085833,1749459044872,-1000.0,0.00023221,2]
[365085834,1749459044882,-504.06463846,0.00023221,2]
[365085835,1749459044891,-1000.0,0.00023221,2]
[365085836,1749459044901,-504.28435098,0.00023221,2]
[365085837,1749459044911,-1000.0,0.00023221,2]
[365085838,1749459044921,-502.78116,0.00023221,2]
[365085839,1749459044930,-1000.0,0.00023221,2]
[365085840,1749459044940,-1000.0,0.00023221,2]
[365085841,1749459044949,-1200.0,0.00023221,2]
[365085842,1749459044959,-1002.24300127,0.00023221,2]
[365085843,1749459044968,-363.58513969,0.00023233,120]
[365085844,1749459044978,-1366.79890361,0.00023245,8]
[365085845,1749459044987,-964.121,0.00023249,2]
[365085846,1749459044998,-653.0,0.00023249,2]
[365085847,1749459045007,-2160.0,0.00023249,2]
[365085848,1749459045016,-539.259,0.00023249,2]
[365085849,1749459045026,-405.0,0.00023249,2]
[365085850,1749459045035,-150.379,0.00023249,2]
[365085851,1749459045047,-442.0,0.00023278,2]
[365085852,1749459045058,-500.0,0.0002328,2]
[365085853,1749459045067,-442.0,0.00023282,2]
[365085854,1749459045077,-288.537628,0.00023282,7]
[365085855,1749459045088,-151.0,0.00023282,7]
[365085856,1749459045097,-151.0,0.00023282,7]
[365085857,1749459045107,-151.0,0.00023282,7]
[365085858,1749459045117,-151.0,0.00023282,7]
[365085859,1749459045126,-151.0,0.00023282,7]
[365085860,1749459045136,-2479.60662543,0.00023282,2]
[365085861,1749459045223,-52485.20775385,0.00023282,2]
[365085862,1749459045233,-151.0,0.00023282,2]
[365085863,1749459045243,-151.0,0.00023282,7]
[365085864,1749459045253,-151.0,0.00023282,7]
[365085865,1749459045263,-151.0,0.00023282,7]
[365085866,1749459045272,-151.0,0.00023282,7]
[365085867,1749459045282,-440.0,0.00023287,2]
[365085868,1749459045292,-440.0,0.00023287,4]
[365085869,1749459045303,-440.0,0.00023287,4]
[365085870,1749459045313,-440.0,0.00023287,4]
[365085871,1749459045323,-440.0,0.00023287,4]
[365085872,1749459045333,-440.0,0.00023287,4]
[365085873,1749459045343,-400.0,0.00023287,2]
[365085874,1749459045352,-767.75,0.00023287,4]
[365085875,1749459045362,-440.0,0.00023287,4]
[365085876,1749459045372,-2275.76,0.00023287,4]
[365085877,1749459045381,-440.0,0.00023287,4]
[365085878,1749459045391,-836.52,0.00023287,4]
[365085879,1749459045401,-440.0,0.00023287,4]
[365085880,1749459045411,-440.0,0.00023287,4]
[365085881,1749459045421,-811.8,0.00023287,4]
[365085882,1749459045431,-827.06,0.00023287,4]
[365085883,1749459045441,-440.0,0.00023287,4]
[365085884,1749459045451,-440.0,0.00023287,4]
[365085885,1749459045461,-1801.25,0.00023287,4]
[365085886,1749459045471,-440.0,0.00023287,4]
[365085887,1749459045481,-781.95,0.00023287,4]
[365085888,1749459045494,-10547.41,0.00023287,4]
[365085889,1749459045504,-1183.2,0.00023287,4]
[365085890,1749459045514,-440.0,0.00023287,4]
[365085891,1749459045524,-807.09,0.00023287,4]
[365085892,1749459045534,-440.0,0.00023287,4]
[365085893,1749459045544,-1350.38,0.00023287,4]
[365085894,1749459045554,-440.0,0.00023287,4]
[365085895,1749459045564,-1019.88,0.00023287,4]
[365085896,1749459045573,-223.58908231,0.00023287,4]
[365085897,1749459045583,-1532.54,0.00023287,4]
[365085898,1749459045593,-440.0,0.00023287,4]
[365085899,1749459045603,-440.0,0.00023287,4]
[365085900,1749459045613,-440.0,0.00023287,4]
[365085901,1749459045622,-440.0,0.00023287,4]
[365085902,1749459045630,-1226.29,0.00023287,4]
[365085903,1749459045639,-440.0,0.00023287,4]
[365085904,1749459045648,-440.0,0.00023287,4]
[365085905,1749459045657,-1446.7,0.00023287,4]
[365085906,1749459045666,-480.29,0.00023287,4]
[365085907,1749459045675,-5000.0,0.00023288,3]
[365085908,1749459045683,-442.0,0.00023299,2]
[365085909,1749459045693,-442.0,0.000233,2]
[365085910,1749459045703,-240.540712,0.00023333,7]
[365085911,1749459045713,-502.26526708,0.00023333,2]
[365085912,1749459045722,-5000.0,0.00023342,3]
[365085913,1749459045732,-1366.79890361,0.00023348,9]
[365085914,1749459045741,-442.0,0.00023376,2]
[365085915,1749459045755,-162.17309574,0.00023397,2]
[365085916,1749459045766,-1448.72644195,0.000234,2]
[365085917,1749459045776,-442.0,0.0002341,2]
[365085918,1749459045786,-442.0,0.00023414,2]
[365085919,1749459045796,-151.0,0.00023419,7]
[365085920,1749459045807,-1321.437127,0.00023439,3]
[365085921,1749459045817,-1366.79890361,0.00023452,9]
[365085922,1749459045827,-442.0,0.00023461,2]
[365085923,1749459045836,-442.0,0.00023463,2]
[365085924,1749459045847,-215.0738,0.00023465,2]
[365085925,1749459045857,-23566.38622394,0.00023499,2]
[365085927,1749459045871,-86662.74637606,0.00023499,2]
[365085928,1749459045881,-573.28,0.000235,7]
[365085929,1749459045892,-22131.90917573,0.000235,2]
[365085930,1749459045904,-26022.77825451,0.000235,2]
[365085931,1749459045917,-4747.49783594,0.000235,2]
[365085932,1749459045954,201.70465916,0.0001843,2]
[365085933,1749459045975,-440.0,0.00021917,4]
[365085934,1749459045985,-2947.36322996,0.000235,2]
[365085935,1749459045998,-12288.66396475,0.000235,2]
[365085946,1749459046214,-10573.0,0.000235,2]
[365085963,1749459046522,-2289.99996995,0.000235,2]
[365085964,1749459089014,150.0,0.00016502,2]
[365085969,1749459441372,161.745269,0.00013699,2]
[365085982,1749460007118,-170.906637,0.00020066,2]
[365085983,1749460007139,-154.90645531,0.00020066,14]
[365085986,1749460114765,150.0,0.000189,2]
[365086027,1749460232637,-300.0,0.00020065,2]
[365086029,1749460232649,-14845.09354469,0.00020066,14]
[365086031,1749460232658,-4838.16769548,0.00020124,2]
[365086094,1749460257180,150.0,0.00017054,2]
[365086095,1749460257628,150.0,0.00018605,2]
[365086098,1749460331827,150.0,0.00017053,2]
[365086099,1749460332300,150.0,0.00018603,2]
[365086104,1749460405748,150.0,0.00017016,2]
[365086105,1749460406175,150.0,0.00018562,2]
[365086107,1749460416798,297.18801671,0.000189,2]
[365086110,1749460477614,150.0,0.00017009,2]
[365086111,1749460478024,150.0,0.00018555,2]
[365086112,1749460531780,163.053596,0.00013699,2]
[365086115,1749460548846,150.0,0.00017009,2]
[365086116,1749460549250,150.0,0.00018555,2]
[365086117,1749460618610,150.0,0.00017087,2]
[365086118,1749460619021,14.99232441,0.0001864,2]
[365086119,1749460619045,135.00767559,0.0001864,2]
[365086120,1749460687723,150.0,0.00016519,2]
[365086121,1749460688147,150.0,0.00018021,2]
[365086122,1749460718060,198.12534447,0.000189,2]
[365086131,1749461019426,150.0,0.000189,2]
[365086169,1749461318124,5420.25697994,0.00018,2]
[365086170,1749461318147,6203.39,0.00018,2]
[365086171,1749461318169,3770.40422006,0.00018,2]
[365086172,1749461320727,150.0,0.000189,2]
[365086201,1749461403115,500.0,0.00018,2]
[365086241,1749461432869,-273.2,0.00019423,2]
[365086244,1749461432878,-185.729615,0.00019426,2]
[365086246,1749461432888,-5012.81305481,0.000195,2]
[365086248,1749461432899,-150.0,0.00019523,2]
[365086250,1749461432909,-273.2,0.00019555,2]
[365086252,1749461432918,-273.2,0.00019687,2]
[365086254,1749461432927,-273.2,0.00019818,2]
[365086256,1749461432937,-1086.5020259,0.0002,2]
[365086258,1749461432947,-1200.0,0.00020049,2]
[365086260,1749461432956,-300.0,0.0002005,2]
[365086262,1749461432966,-300.0,0.0002005,2]
[365086264,1749461432975,-300.0,0.0002005,2]
[365086267,1749461432985,-300.0,0.0002005,2]
[365086269,1749461432994,-300.0,0.00020051,2]
[365086271,1749461433003,-10000.0,0.00020055,30]
[365086273,1749461433012,-315.14996555,0.00020055,30]
[365086274,1749461433022,-2926.72861272,0.00020124,2]
[365086277,1749461433032,-215.62823106,0.00020212,2]
[365086278,1749461433041,-518.0887029,0.00020244,2]
[365086281,1749461433051,-315.14996555,0.00020848,2]
[365086283,1749461433061,-11856.04170836,0.00020848,2]
[365086285,1749461433070,-160.0,0.00020855,2]
[365086287,1749461433081,-168.665,0.0002086,2]
[365086289,1749461433091,-213.08899333,0.00020879,2]
[365086291,1749461433101,-160.0,0.00020879,2]
[365086293,1749461433110,-160.0,0.00020879,2]
[365086295,1749461433120,-160.0,0.00020879,2]
[365086297,1749461433129,-842.5625,0.00020879,2]
[365086299,1749461433139,-229.64266968,0.00020879,2]
[365086301,1749461433149,-424.05420114,0.00020879,2]
[365086303,1749461433158,-834.7738823,0.00020879,2]
[365086305,1749461433168,-1155.43040359,0.000209,4]
[365086307,1749461433177,-163.053596,0.00020951,2]
[365086309,1749461433187,-150.0,0.00021025,2]
[365086311,1749461433196,-1155.43040339,0.00021038,4]
[365086325,1749461433206,-1155.43040339,0.00021176,4]
[365086327,1749461433354,-153.0,0.0002126,2]
[365086328,1749461433365,-153.0,0.0002126,2]
[365086329,1749461433374,-153.0,0.0002126,2]
[365086330,1749461433385,-1155.43040339,0.00021314,5]
[365086331,1749461433395,-1155.43040339,0.00021452,5]
[365086332,1749461433406,-1155.43040339,0.0002159,5]
[365086333,1749461433415,-1155.43040339,0.00021728,5]
[365086334,1749461433424,-10440.41687451,0.0002181,2]
[365086335,1749461433445,-411.2206125,0.0002181,2]
[365086336,1749461433457,-56.36251199,0.0002181,2]
[365086337,1749461433466,-500.0,0.00021818,2]
[365086338,1749461433475,-151.3354925,0.00021818,2]
[365086339,1749461433485,-5000.0,0.00021818,2]
[365086340,1749461433495,-616.1016063,0.00021818,2]
[365086341,1749461433504,-153.06190237,0.00021818,2]
[365086342,1749461433514,-500.0,0.00021818,2]
[365086343,1749461433523,-207.4,0.00021818,2]
[365086344,1749461433533,-500.0,0.00021818,2]
[365086345,1749461433543,-500.0,0.00021818,2]
[365086346,1749461433552,-500.0,0.00021818,2]
[365086347,1749461433562,-500.0,0.00021818,2]
[365086348,1749461433571,-500.0,0.00021818,2]
[365086349,1749461433581,-252.75982885,0.00021818,2]
[365086350,1749461433591,-420.0,0.00021831,2]
[365086351,1749461433600,-240.0,0.00021832,2]
[365086352,1749461433610,-1155.43040339,0.00021866,6]
[365086353,1749461433619,-161.21291159,0.000219,30]
[365086354,1749461433629,-256.98,0.00021907,3]
[365086355,1749461433639,-770.95,0.00021907,3]
[365086356,1749461433649,-500.0,0.00021916,2]
[365086357,1749461433659,-191.19494339,0.00021916,2]
[365086358,1749461433668,-599.85,0.00021916,2]
[365086359,1749461433678,-203.73728105,0.00021917,2]
[365086360,1749461433687,-440.0,0.00021917,4]
[365086361,1749461433696,-8.8643127,0.00021917,4]
[365086439,1749461438962,-160.0,0.00019952,2]
[365086441,1749461438972,-430.0,0.00021917,4]
[365086443,1749461438982,-430.0,0.00021917,4]
[365086445,1749461438991,-430.0,0.00021917,4]
[365086447,1749461439001,-430.0,0.00021917,4]
[365086449,1749461439011,-440.0,0.00021917,4]
[365086451,1749461439020,-430.0,0.00021917,4]
[365086453,1749461439031,-587.71974838,0.00021917,4]
[365086455,1749461439041,-320.98718604,0.00021917,4]
[365086457,1749461439050,-289.06171105,0.00021917,4]
[365086530,1749461443738,-273.2,0.0001995,2]
[365086531,1749461443749,-143.18225074,0.00021917,4]
[365086532,1749461443759,-368.69810378,0.00021917,4]
[365086576,1749461446785,-61.30189622,0.00021917,4]
[365086578,1749461446796,-440.0,0.00021917,4]
[365086580,1749461446806,-430.0,0.00021917,4]
[365086582,1749461446815,-430.0,0.00021917,4]
[365086584,1749461446825,-92.40120393,0.00021917,4]
[365086598,1749461446950,-337.59879607,0.00021917,4]
[365086601,1749461446960,-440.0,0.00021917,4]
[365086604,1749461446969,-430.0,0.00021917,4]
[365086606,1749461446978,-500.0,0.00021917,2]
[365086608,1749461446988,-431.8346878,0.00021917,4]
[365086610,1749461446997,-430.0,0.00021917,4]
[365086612,1749461447007,-85.01699558,0.00021917,4]
[365086666,1749461499216,150.0,0.00016449,2]
[365086667,1749461499618,150.0,0.00017944,2]
[365086675,1749461639248,163.053596,0.00013699,2]
[365086679,1749461703079,500.0,0.00018,2]
[365086680,1749461770518,150.0,0.00016515,2]
[365086681,1749461770938,150.0,0.00018016,2]
[365086682,1749461845769,150.0,0.00016457,2]
[365086683,1749461846688,150.0,0.00017953,2]
[365086685,1749461920431,150.0,0.00016469,2]
[365086686,1749461921390,69.93218394,0.00017966,2]
[365086687,1749461921415,80.06781606,0.00017966,2]
[365086689,1749461993921,150.0,0.00016486,2]
[365086690,1749461994871,150.0,0.00017984,2]
[365086692,1749462067415,150.0,0.00016628,2]
[365086693,1749462067822,150.0,0.0001814,2]
[365086700,1749462142655,150.0,0.00016507,2]
[365086701,1749462143103,150.0,0.00018008,2]
[365086711,1749462215315,150.0,0.00016509,2]
[365086712,1749462215776,150.0,0.0001801,2]
[365086714,1749462227881,876.64,0.00019,2]
[365086715,1749462286441,150.0,0.00016522,2]
[365086716,1749462286858,150.0,0.00018024,2]
[365086717,1749462357871,150.0,0.00016469,2]
[365086718,1749462358280,150.0,0.00017966,2]
[365086721,1749462429379,150.0,0.00016468,2]
[365086722,1749462429656,150.0,0.00017965,2]
[365086728,1749462501490,150.0,0.00016465,2]
[365086729,1749462501884,150.0,0.00017962,2]
[365086738,1749462572726,150.0,0.00016461,2]
[365086739,1749462573179,150.0,0.00017958,2]
[365086833,1749462638063,-819.72178287,0.0001929,2]
[365086835,1749462638073,-300.0,0.00019299,2]
[365086837,1749462638082,-300.0,0.00019299,2]
[365086839,1749462638092,-1200.0,0.00019299,2]
[365086841,1749462638102,-633.96028989,0.000193,7]
[365086843,1749462638114,-10392.44777807,0.000193,7]
[365086845,1749462638124,-150.0,0.00019509,2]
[365086847,1749462638133,-195.31106325,0.000199,2]
[365086849,1749462638143,-301.85405202,0.00020171,2]
[365086851,1749462638153,-213.08899333,0.00020847,2]
[365086854,1749462638164,-160.0,0.00020847,2]
[365086856,1749462638173,-160.0,0.00020847,2]
[365086857,1749462638183,-842.5625,0.00020847,2]
[365086860,1749462638193,-424.05420114,0.00020847,2]
[365086862,1749462638203,-834.7738823,0.00020847,2]
[365086864,1749462638214,-160.0,0.00020847,2]
[365086866,1749462638223,-1088.9412652,0.000209,4]
[365086868,1749462638232,-10726.01746955,0.00020914,2]
[365086870,1749462638242,-166.454,0.00020921,2]
[365086872,1749462638251,-500.0,0.00020923,2]
[365086874,1749462638261,-500.0,0.00020923,2]
[365086876,1749462638271,-500.0,0.00020923,2]
[365086878,1749462638280,-500.0,0.00020923,2]
[365086881,1749462638290,-500.0,0.00020923,2]
[365086884,1749462638299,-500.0,0.00020923,2]
[365086887,1749462638309,-500.0,0.00020923,2]
[365086889,1749462638320,-649.16315656,0.00020923,2]
[365086891,1749462638329,-203.65498791,0.00020923,2]
[365086893,1749462638339,-500.0,0.00020923,2]
[365086895,1749462638348,-500.0,0.00020923,2]
[365086897,1749462638358,-500.0,0.00020923,2]
[365086899,1749462638368,-500.0,0.00020923,2]
[365086901,1749462638378,-500.0,0.00020923,2]
[365086903,1749462638387,-500.0,0.00020923,2]
[365086905,1749462638397,-500.0,0.00020923,2]
[365086908,1749462638407,-500.0,0.00020923,2]
[365086910,1749462638416,-500.0,0.00020923,2]
[365086912,1749462638426,-500.0,0.00020923,2]
[365086914,1749462638436,-500.0,0.00020923,2]
[365086916,1749462638445,-184.53265739,0.00020923,2]
[365086918,1749462638455,-500.0,0.00020923,2]
[365086920,1749462638465,-500.0,0.00020923,2]
[365086922,1749462638475,-500.0,0.00020923,2]
[365086924,1749462638485,-500.0,0.00020923,2]
[365086926,1749462638495,-500.0,0.00020923,2]
[365086928,1749462638504,-500.0,0.00020923,2]
[365086930,1749462638513,-500.0,0.00020923,2]
[365086932,1749462638523,-500.0,0.00020923,2]
[365086934,1749462638533,-500.0,0.00020923,2]
[365086936,1749462638542,-500.0,0.00020923,2]
[365086938,1749462638553,-500.0,0.00020923,2]
[365086940,1749462638563,-500.0,0.00020923,2]
[365086942,1749462638572,-500.0,0.00020923,2]
[365086944,1749462638582,-281.09261024,0.00020923,2]
[365086946,1749462638592,-500.0,0.00020923,2]
[365086948,1749462638602,-500.0,0.00020923,2]
[365086950,1749462638611,-500.0,0.00020923,2]
[365086952,1749462638621,-500.0,0.00020923,2]
[365086955,1749462638631,-292.00825545,0.00020923,2]